bitfinex/quotes_SOLUSD_20250507
["timestamp","ask_amount","ask_price","bid_price","bid_amount"]
[1746636531365,23.93489707,146.23,146.2,33.7101993]
[1746636531864,6.83854202,146.23,146.2,33.7101993]
[1746636533094,40.54827369,146.24,146.2,33.7101993]
[1746636535789,21.06329981,146.24,146.17,115.3413353]
[1746636535987,21.06329981,146.24,146.2,21.06329981]
[1746636536389,21.06329981,146.24,146.19,21.06329981]
[1746636536580,44.9950859,146.25,146.2,21.06329981]
[1746636537784,21.06329981,146.23,146.19,21.06329981]
[1746636537982,6.83900971,146.22,146.19,21.06329981]
[1746636540598,6.83900971,146.22,146.2,21.06329981]
[1746636541496,6.83900971,146.22,146.19,21.06329981]
[1746636542291,23.93489707,146.23,146.19,21.06329981]
[1746636543302,23.93489707,146.23,146.2,21.06329981]
[1746636543499,6.83854202,146.23,146.21,21.06329981]
[1746636543795,6.83854202,146.23,146.22,21.06329981]
[1746636544578,17.09419492,146.25,146.22,21.06329981]
[1746636544978,17.09419492,146.25,146.21,21.06329981]
[1746636545179,38.15749473,146.25,146.21,21.06329981]
[1746636545567,21.20546138,146.24,146.2,21.06329981]
[1746636545794,21.06329981,146.23,146.19,21.06329981]
[1746636545972,0.14216157,146.24,146.17,108.5]
[1746636545973,21.20546138,146.24,146.2,21.06329981]
[1746636546391,0.14216157,146.24,146.2,21.06329981]
[1746636547006,23.93489707,146.23,146.2,21.06329981]
[1746636547290,23.93489707,146.23,146.21,21.06329981]
[1746636547496,23.93489707,146.23,146.22,21.06329981]
[1746636549091,24.07378549,146.25,146.22,21.06329981]
[1746636549296,24.07378549,146.25,146.21,21.06329981]
[1746636549794,24.07378549,146.25,146.17,108.5]
[1746636549795,23.93162392,146.25,146.23,21.06329981]
[1746636550197,6.83760683,146.25,146.24,21.06329981]
[1746636551192,17.08950933,146.29,146.24,21.06329981]
[1746636551496,17.08950933,146.29,146.27,21.06329981]
[1746636551698,17.08950933,146.29,146.26,21.06329981]
[1746636552200,6.83620453,146.28,146.27,21.06329981]
[1746636552699,6.83480281,146.31,146.27,47.06329981]
[1746636552994,6.83480281,146.31,146.3,21.06329981]
[1746636553297,23.92133618,146.32,146.3,21.06329981]
[1746636554395,39.85511024,146.31,146.24,84.0578]
[1746636554580,21.06329981,146.29,146.25,21.06329981]
[1746636554983,21.06329981,146.28,146.24,47.06329981]
[1746636555176,0.14216157,146.27,146.24,47.06329981]
[1746636555394,6.83713934,146.26,146.24,26.0]
[1746636556800,6.83713934,146.26,146.24,47.06329981]
[1746636557178,6.83713934,146.26,146.25,21.06329981]
[1746636557675,6.9778988,146.29,146.25,33.6827353]
[1746636558287,6.83573723,146.29,146.26,33.6827353]
[1746636558489,6.83573723,146.29,146.25,33.6827353]
[1746636559078,57.60781561,146.29,146.25,33.6827353]
[1746636560302,33.82489687,146.28,146.24,59.6827353]
[1746636560503,33.82489687,146.28,146.24,26.0]
[1746636561201,18.79181043,146.28,146.24,59.6827353]
[1746636561395,23.92508031,146.29,146.24,26.0]
[1746636561604,23.92508031,146.29,146.26,33.6827353]
[1746636562106,23.92508031,146.29,146.25,33.6827353]
[1746636563102,57.60781561,146.29,146.25,33.6827353]
[1746636563304,33.6827353,146.28,146.24,26.0]
[1746636563610,33.6827353,146.28,146.24,59.6827353]
[1746636564309,6.83713934,146.26,146.24,26.0]
[1746636564605,40.51987464,146.26,146.22,59.6827353]
[1746636564798,6.83713934,146.26,146.22,59.6827353]
[1746636565414,23.92998769,146.26,146.22,59.6827353]
[1746636565592,57.61272299,146.26,146.22,59.6827353]
[1746636565905,57.61272299,146.26,146.21,33.6827353]
[1746636566297,57.61272299,146.26,146.21,59.6827353]
[1746636568309,57.61272299,146.26,146.22,33.6827353]
[1746636569414,23.92998769,146.26,146.23,33.6827353]
[1746636570411,6.83713934,146.26,146.23,33.6827353]
[1746636571010,6.83713934,146.26,146.22,33.6827353]
[1746636571516,6.83713934,146.26,146.21,26.0]
[1746636571517,0.14216157,146.25,146.21,59.6827353]
[1746636571895,0.14216157,146.25,146.22,33.6827353]
[1746636573121,6.83807439,146.24,146.22,33.6827353]
[1746636575022,6.83807439,146.24,146.2,33.6827353]
[1746636575214,40.52080969,146.24,146.2,33.6827353]
[1746636575412,57.61599568,146.24,146.2,33.6827353]
[1746636577704,45.0003063,146.24,146.2,21.06704592]
[1746636580021,6.83807439,146.24,146.22,21.06704592]
[1746636580318,6.83807439,146.24,146.23,21.06704592]
[1746636581225,0.14216157,146.27,146.23,21.06704592]
[1746636581430,0.14216157,146.27,146.25,21.06704592]
[1746636581726,6.8366719,146.27,146.24,21.06704592]
[1746636582308,6.8366719,146.27,146.25,21.06704592]
[1746636583399,6.83620453,146.28,146.25,21.06704592]
[1746636584419,6.83620453,146.28,146.21,82.5]
[1746636584636,6.83620453,146.28,146.25,21.06704592]
[1746636585008,23.92671587,146.28,146.25,21.06704592]
[1746636586520,23.92671587,146.28,146.24,21.06704592]
[1746636587224,23.92671587,146.28,146.25,21.06704592]
[1746636589819,44.99376179,146.28,146.24,21.06704592]
[1746636590309,44.99376179,146.28,146.25,21.06704592]
[1746636590310,23.92671587,146.28,146.25,21.06704592]
[1746636592231,23.92671587,146.28,146.26,21.06704592]
[1746636592925,23.92671587,146.28,146.25,21.06704592]
[1746636593725,17.09051134,146.28,146.25,21.06704592]
[1746636597427,6.83573723,146.29,146.27,21.06704592]
[1746636597835,6.83573723,146.29,146.26,21.06704592]
[1746636598337,6.83573723,146.29,146.27,21.06704592]
[1746636598914,6.83573723,146.29,146.26,21.06704592]
[1746636599324,23.92508031,146.29,146.25,21.06704592]
[1746636599619,44.99212623,146.29,146.25,21.06704592]
[1746636599941,23.92508031,146.29,146.26,21.06704592]
[1746636600326,23.92508031,146.29,146.25,21.06704592]
[1746636600727,44.99212623,146.29,146.25,21.06704592]
[1746636601338,23.92180984,146.31,146.28,21.06704592]
[1746636601643,6.83480281,146.31,146.3,21.06704592]
[1746636603026,23.91545828,146.35,146.3,21.06704592]
[1746636603221,23.91545828,146.35,146.33,21.06704592]
[1746636604938,21.20920749,146.34,146.3,21.06704592]
[1746636605143,21.20920749,146.34,146.28,47.06704592]
[1746636605144,21.06704592,146.33,146.28,47.06704592]
[1746636605448,23.92017495,146.32,146.29,21.06704592]
[1746636606542,23.92017495,146.32,146.25,39.40974592]
[1746636606543,21.20920749,146.31,146.27,21.06704592]
[1746636607949,23.92344497,146.3,146.25,1.6227]
[1746636608242,21.06704592,146.29,146.25,21.06704592]
[1746636608447,0.14216157,146.29,146.26,21.06704592]
[1746636610351,6.83620453,146.28,146.26,21.06704592]
[1746636613342,23.92671587,146.28,146.25,21.06704592]
[1746636614754,21.06704592,146.26,146.22,21.06704592]
[1746636615058,39.85885635,146.27,146.23,21.06704592]
[1746636615432,18.79181043,146.27,146.23,21.06704592]
[1746636615846,39.85885635,146.27,146.23,21.06704592]
[1746636616147,39.85885635,146.27,146.22,21.06704592]
[1746636616660,23.92998769,146.26,146.22,21.06704592]
[1746636617253,0.14216157,146.25,146.22,21.06704592]
[1746636617554,18.79181043,146.25,146.22,21.06704592]
[1746636617728,39.85885635,146.25,146.19,26.0]
[1746636617925,39.85885635,146.25,146.17,1.5798]
[1746636618127,18.79181043,146.23,146.17,1.5798]
[1746636618436,0.14216157,146.23,146.2,21.06704592]
[1746636618958,6.83900971,146.22,146.2,21.06704592]
[1746636620346,6.83573723,146.29,146.21,21.06704592]
[1746636620646,0.14216157,146.27,146.25,21.06704592]
[1746636621757,0.14216157,146.27,146.25,33.68613374]
[1746636622236,18.64964886,146.28,146.25,33.68613374]
[1746636622435,6.83526999,146.3,146.27,33.68613374]
[1746636622636,25.48491885,146.3,146.29,33.68613374]
[1746636622941,6.83526999,146.3,146.29,33.68613374]
[1746636624053,6.83480281,146.31,146.29,33.68613374]
[1746636624238,0.14216157,146.29,146.26,33.68613374]
[1746636624845,33.82829531,146.29,146.25,33.68613374]
[1746636625061,18.79181043,146.27,146.24,33.68613374]
[1746636625242,18.79181043,146.27,146.25,33.68613374]
[1746636625443,0.14216157,146.27,146.25,33.68613374]
[1746636625961,6.83713934,146.26,146.25,33.68613374]
[1746636626208,6.83713934,146.26,146.23,33.68613374]
[1746636626541,23.92998769,146.26,146.23,33.68613374]
[1746636626844,23.92998769,146.26,146.24,33.68613374]
[1746636627665,23.92998769,146.26,146.25,33.68613374]
[1746636627963,17.09284835,146.26,146.25,33.68613374]
[1746636628368,6.8366719,146.27,146.25,33.68613374]
[1746636628540,6.8366719,146.27,146.26,33.68613374]
[1746636630442,6.83573723,146.29,146.26,33.68613374]
[1746636630656,6.83573723,146.29,146.28,33.68613374]
[1746636630958,6.8343357,146.32,146.28,33.68613374]
[1746636631144,6.8343357,146.32,146.31,33.68613374]
[1746636632376,6.83340166,146.34,146.31,33.68613374]
[1746636632550,6.83340166,146.34,146.27,32.83637228]
[1746636632751,6.83340166,146.34,146.33,33.68613374]
[1746636633163,6.83340166,146.34,146.32,33.68613374]
[1746636633371,42.56655468,146.34,146.31,33.68613374]
[1746636634485,42.56655468,146.34,146.32,33.68613374]
[1746636635055,42.70871625,146.34,146.33,33.68613374]
[1746636635269,23.91690582,146.34,146.33,33.68613374]
[1746636635570,23.91690582,146.34,146.32,33.68613374]
[1746636636673,17.08350416,146.34,146.32,33.68613374]
[1746636638380,17.08350416,146.34,146.28,26.0]
[1746636638686,17.08350416,146.34,146.32,33.68613374]
[1746636639060,6.83293474,146.35,146.33,33.68613374]
[1746636639374,6.83293474,146.35,146.34,33.68613374]
[1746636640656,42.56103894,146.38,146.34,33.68613374]
[1746636640863,42.56103894,146.38,146.35,33.68613374]
[1746636641260,23.91139008,146.38,146.37,33.68613374]
[1746636641789,23.91139008,146.38,146.37,21.01982721]
[1746636641956,23.91139008,146.38,146.36,21.01982721]
[1746636642757,17.07985572,146.38,146.36,21.01982721]
[1746636643162,17.07985572,146.38,146.31,26.0]
[1746636643363,38.09968293,146.38,146.34,21.01982721]
[1746636644186,21.01982721,146.37,146.33,21.01982721]
[1746636644377,21.01982721,146.36,146.32,21.01982721]
[1746636644686,0.14216157,146.37,146.32,21.01982721]
[1746636644882,21.01982721,146.37,146.32,21.01982721]
[1746636645089,0.14216157,146.37,146.33,21.01982721]
[1746636645387,21.16198878,146.37,146.33,21.01982721]
[1746636645598,0.14216157,146.37,146.33,21.01982721]
[1746636645788,6.83153436,146.38,146.34,33.64975337]
[1746636645974,6.83153436,146.38,146.37,33.64975337]
[1746636646474,6.83060109,146.4,146.37,33.64975337]
[1746636646694,6.83060109,146.4,146.38,33.64975337]
[1746636646878,23.90655811,146.41,146.38,33.64975337]
[1746636647497,6.83013455,146.41,146.39,33.64975337]
[1746636647681,6.83013455,146.41,146.4,33.64975337]
[1746636648484,6.82873531,146.44,146.4,33.64975337]
[1746636648704,6.82873531,146.44,146.41,33.64975337]
[1746636648884,17.07183829,146.44,146.41,33.64975337]
[1746636649405,33.64975337,146.42,146.37,33.64975337]
[1746636649588,18.79181043,146.43,146.37,33.64975337]
[1746636649877,33.64975337,146.42,146.37,33.64975337]
[1746636650201,33.64975337,146.41,146.37,33.64975337]
[1746636650704,23.90710382,146.4,146.37,33.64975337]
[1746636650902,23.90710382,146.4,146.36,33.64975337]
[1746636651079,23.90710382,146.4,146.38,33.64975337]
[1746636651995,17.07650273,146.4,146.38,33.64975337]
[1746636652408,17.07650273,146.4,146.37,33.64975337]
[1746636652696,17.07650273,146.4,146.38,33.64975337]
[1746636653307,6.83013455,146.41,146.39,33.64975337]
[1746636653600,6.83013455,146.41,146.4,33.64975337]
[1746636654003,6.82873531,146.44,146.4,33.64975337]
[1746636654199,6.82873531,146.44,146.41,33.64975337]
[1746636655704,6.82873531,146.44,146.4,33.64975337]
[1746636656096,57.55032697,146.44,146.4,33.64975337]
[1746636656799,23.9005736,146.44,146.4,33.64975337]
[1746636657600,17.07183829,146.44,146.41,33.64975337]
[1746636657786,6.82826903,146.45,146.41,33.64975337]
[1746636657982,40.4780224,146.45,146.41,33.64975337]
[1746636658183,57.54869498,146.45,146.41,33.64975337]
[1746636658404,23.89894161,146.45,146.41,33.64975337]
[1746636659291,57.54869498,146.45,146.41,33.64975337]
[1746636659489,33.64975337,146.43,146.39,33.64975337]
[1746636659811,33.64975337,146.43,146.38,33.64975337]
[1746636660184,0.14216157,146.42,146.38,33.64975337]
[1746636660407,33.64975337,146.42,146.37,33.64975337]
[1746636660901,33.64975337,146.41,146.37,33.64975337]
[1746636661100,33.79191494,146.41,146.37,33.64975337]
[1746636661299,6.83060109,146.4,146.33,34.34118079]
[1746636661607,6.83060109,146.4,146.37,33.64975337]
[1746636662303,23.90547093,146.41,146.37,33.64975337]
[1746636662515,0.14216157,146.4,146.37,33.64975337]
[1746636662812,0.14216157,146.4,146.35,33.64975337]
[1746636662813,33.79191494,146.4,146.35,33.64975337]
[1746636662994,33.79191494,146.4,146.34,33.64975337]
[1746636662995,33.64975337,146.39,146.34,33.64975337]
[1746636663691,33.79191494,146.38,146.3,23.51513051]
[1746636664015,33.64975337,146.37,146.32,33.64975337]
[1746636664514,6.83246788,146.36,146.33,33.64975337]
[1746636664810,6.83246788,146.36,146.29,8.44347105]
[1746636664987,6.83246788,146.36,146.32,33.64975337]
[1746636665187,6.83246788,146.36,146.33,33.64975337]
[1746636665981,57.56339096,146.36,146.29,1.6079]
[1746636666207,23.91363759,146.36,146.32,33.64975337]
[1746636666403,0.14216157,146.35,146.33,33.64975337]
[1746636666607,33.79191494,146.35,146.31,33.64975337]
[1746636666809,0.14216157,146.35,146.31,33.64975337]
[1746636667000,0.14216157,146.35,146.32,33.64975337]
[1746636667198,18.79181043,146.35,146.27,32.0609]
[1746636667407,18.79181043,146.35,146.31,33.64975337]
[1746636667609,6.83340166,146.34,146.31,33.64975337]
[1746636668008,23.91690582,146.34,146.31,33.64975337]
[1746636668521,23.91690582,146.34,146.32,33.64975337]
[1746636668724,23.91690582,146.34,146.31,33.64975337]
[1746636669029,0.14216157,146.33,146.29,33.64975337]
[1746636669229,52.4415638,146.33,146.29,33.64975337]
[1746636669591,6.8343357,146.32,146.29,33.64975337]
[1746636670409,23.92017495,146.32,146.25,35.28475337]
[1746636670608,23.92017495,146.32,146.29,33.64975337]
[1746636671422,23.92017495,146.32,146.3,33.64975337]
[1746636672124,6.83480281,146.31,146.3,33.64975337]
[1746636673019,23.92017495,146.32,146.3,33.64975337]
[1746636673327,6.83340166,146.34,146.31,33.64975337]
[1746636673624,143.63310341,146.35,146.33,33.64975337]
[1746636673800,143.63310341,146.35,146.34,33.64975337]
[1746636676033,143.63310341,146.35,146.33,33.64975337]
[1746636677731,143.63310341,146.35,146.27,6.83627796]
[1746636677928,143.63310341,146.35,146.32,33.64975337]
[1746636678506,160.71544027,146.35,146.32,33.64975337]
[1746636679115,143.63310341,146.35,146.32,33.64975337]
[1746636679739,143.63310341,146.35,146.33,33.64975337]
[1746636680112,143.63310341,146.35,146.34,33.64975337]
[1746636680310,136.8,146.35,146.34,33.64975337]
[1746636680513,143.63293474,146.35,146.27,23.92795773]
[1746636680722,6.83293474,146.35,146.33,33.64975337]
[1746636681740,0.14216157,146.36,146.32,33.64975337]
[1746636682309,33.79191494,146.36,146.31,33.64975337]
[1746636682547,0.14216157,146.36,146.32,33.64975337]
[1746636683449,6.83293474,146.35,146.33,33.64975337]
[1746636684449,23.9152716,146.35,146.26,32.83698726]
[1746636684651,23.9152716,146.35,146.32,33.64975337]
[1746636686137,0.14216157,146.34,146.31,33.64975337]
[1746636687437,0.14216157,146.34,146.32,33.64975337]
[1746636687860,6.83386865,146.33,146.32,33.64975337]
[1746636688148,6.83293474,146.35,146.32,33.64975337]
[1746636688445,6.83293474,146.35,146.34,33.64975337]
[1746636689548,6.83263615,146.36,146.34,33.64975337]
[1746636689743,6.83263615,146.36,146.35,33.64975337]
[1746636692051,143.63216612,146.37,146.35,33.64975337]
[1746636692227,6.83060109,146.4,146.36,33.64975337]
[1746636692421,6.83060109,146.4,146.38,33.64975337]
[1746636693554,143.63025662,146.41,146.39,33.64975337]
[1746636693751,6.83025662,146.41,146.4,33.64975337]
[1746636693933,6.82873531,146.44,146.4,33.64975337]
[1746636694135,6.82873531,146.44,146.41,33.64975337]
[1746636694338,23.9005736,146.44,146.41,33.64975337]
[1746636694848,23.9005736,146.44,146.37,1.6312]
[1746636695151,23.9005736,146.44,146.41,33.64975337]
[1746636695354,23.9005736,146.44,146.42,33.64975337]
[1746636695848,23.9005736,146.44,146.37,8.46298397]
[1746636696054,23.9005736,146.44,146.41,33.64975337]
[1746636696427,0.14216157,146.43,146.37,1.6312]
[1746636696633,0.14216157,146.43,146.4,33.64975337]
[1746636697336,23.9005736,146.44,146.41,33.64975337]
[1746636699363,6.82873531,146.44,146.43,33.64975337]
[1746636701047,17.06474434,146.51,146.43,33.64975337]
[1746636701284,17.06474434,146.51,146.49,33.64975337]
[1746636702360,23.890217,146.51,146.49,33.64975337]
[1746636702762,6.82547266,146.51,146.5,33.64975337]
[1746636703365,6.82454104,146.53,146.5,33.64975337]
[1746636703554,6.82454104,146.53,146.52,33.64975337]
[1746636704346,6.82454104,146.53,146.43,167.66285337]
[1746636704347,17.06135262,146.53,146.5,33.64975337]
[1746636704547,6.82407533,146.54,146.52,33.64975337]
[1746636705667,6.82360968,146.55,146.53,33.64975337]
[1746636705838,6.82360968,146.55,146.54,33.64975337]
[1746636706249,6.82221312,146.58,146.54,33.64975337]
[1746636706567,6.82221312,146.58,146.57,33.64975337]
[1746636707254,23.87774593,146.58,146.49,110.1506]
[1746636707456,23.87774593,146.58,146.55,33.64975337]
[1746636708148,23.87774593,146.58,146.49,1.6506]
[1746636708149,0.14216157,146.57,146.49,1.6506]
[1746636708465,57.98881155,146.58,146.55,33.64975337]
[1746636710262,23.87774593,146.58,146.55,33.64975337]
[1746636710850,23.87774593,146.58,146.54,33.64975337]
[1746636711049,23.87774593,146.58,146.55,33.64975337]
[1746636711251,23.87774593,146.58,146.54,33.64975337]
[1746636712146,0.14216157,146.57,146.53,33.64975337]
[1746636712465,33.64975337,146.57,146.53,33.64975337]
[1746636712768,0.14216157,146.57,146.53,33.64975337]
[1746636712961,33.79191494,146.57,146.53,33.64975337]
[1746636713164,33.79191494,146.57,146.52,33.64975337]
[1746636713677,57.98881155,146.58,146.55,33.64975337]
[1746636713969,57.98881155,146.58,146.49,1.6506]
[1746636713970,57.98881155,146.58,146.56,33.64975337]
[1746636715169,52.4415638,146.57,146.49,84.1506]
[1746636715347,0.14216157,146.55,146.51,33.64975337]
[1746636715975,23.8826339,146.55,146.51,33.64975337]
[1746636716144,23.8826339,146.55,146.52,33.64975337]
[1746636716467,23.8826339,146.55,146.54,33.64975337]
[1746636717246,6.82360968,146.55,146.54,33.64975337]
[1746636717457,6.82360968,146.55,146.49,1.6506]
[1746636717659,6.82360968,146.55,146.53,33.64975337]
[1746636717867,6.82360968,146.55,146.52,33.64975337]
[1746636717868,23.8826339,146.55,146.52,33.64975337]
[1746636718071,23.8826339,146.55,146.51,33.64975337]
[1746636718449,23.8826339,146.55,146.52,33.64975337]
[1746636719156,6.82360968,146.55,146.54,33.64975337]
[1746636720043,23.87868002,146.58,146.54,33.64975337]
[1746636720244,23.87868002,146.58,146.5,82.5]
[1746636720469,0.14216157,146.57,146.53,33.64975337]
[1746636720848,78.4415638,146.57,146.52,33.64975337]
[1746636721447,0.14216157,146.54,146.47,16.66]
[1746636721768,0.14216157,146.54,146.51,33.64975337]
[1746636722067,6.82454104,146.53,146.51,33.64975337]
[1746636722267,6.82454104,146.53,146.52,33.64975337]
[1746636724556,6.82360968,146.55,146.52,33.64975337]
[1746636724758,6.82360968,146.55,146.53,33.64975337]
[1746636725353,6.82360968,146.55,146.54,33.64975337]
[1746636725656,17.0578768,146.56,146.53,33.64975337]
[1746636725850,17.0578768,146.56,146.52,33.64975337]
[1746636726974,23.8810209,146.56,146.52,33.64975337]
[1746636728876,57.53077427,146.56,146.52,33.64975337]
[1746636729878,23.8810209,146.56,146.52,33.64975337]
[1746636730056,23.8810209,146.56,146.53,33.64975337]
[1746636732278,23.8810209,146.56,146.52,33.64975337]
[1746636735270,23.8810209,146.56,146.54,33.64975337]
[1746636735677,23.8810209,146.56,146.52,33.64975337]
[1746636736692,23.8810209,146.56,146.53,33.64975337]
[1746636736859,23.8810209,146.56,146.54,33.64975337]
[1746636737275,6.8231441,146.56,146.54,33.64975337]
[1746636741591,6.8231441,146.56,146.53,33.64975337]
[1746636741886,6.8231441,146.56,146.53,20.97262233]
[1746636742863,27.79576643,146.56,146.47,6.82733665]
[1746636743073,27.79576643,146.56,146.52,20.97262233]
[1746636743467,6.8231441,146.56,146.52,20.97262233]
[1746636743789,44.85362669,146.56,146.51,20.97262233]
[1746636744085,6.82407533,146.54,146.5,20.97262233]
[1746636744767,23.88426367,146.54,146.5,20.97262233]
[1746636745185,44.856886,146.54,146.5,20.97262233]
[1746636745481,23.88426367,146.54,146.51,20.97262233]
[1746636745691,23.88426367,146.54,146.46,8.38565459]
[1746636745986,23.88426367,146.54,146.5,20.97262233]
[1746636747362,23.88426367,146.54,146.51,20.97262233]
[1746636748663,17.06018834,146.54,146.51,20.97262233]
[1746636749159,17.06018834,146.54,146.52,20.97262233]
[1746636750674,17.06018834,146.54,146.51,20.97262233]
[1746636751386,17.06018834,146.54,146.52,20.97262233]
[1746636753487,17.06018834,146.54,146.51,20.97262233]
[1746636754492,6.82360968,146.55,146.53,20.97262233]
[1746636754793,6.82360968,146.55,146.54,20.97262233]
[1746636754995,178.59914886,146.6,146.54,20.97262233]
[1746636755197,161.95914886,146.6,146.52,20.97262233]
[1746636755495,169.3095,146.6,146.56,20.97262233]
[1746636755796,6.82221312,146.58,146.56,20.97262233]
[1746636756097,6.82221312,146.58,146.57,20.97262233]
[1746636759673,6.82221312,146.58,146.56,20.97262233]
[1746636760793,7.78577162,146.59,146.57,20.97262233]
[1746636761274,7.78577162,146.59,146.58,20.97262233]
[1746636761475,7.78577162,146.59,146.54,6.82405643]
[1746636761878,7.78577162,146.59,146.58,20.97262233]
[1746636762282,0.963805,146.59,146.58,20.97262233]
[1746636763299,0.963805,146.59,146.55,6.82353637]
[1746636763491,0.963805,146.59,146.58,20.97262233]
[1746636763878,7.78555273,146.59,146.58,20.97262233]
[1746636767302,0.963805,146.59,146.55,6.82353652]
[1746636767490,0.963805,146.59,146.58,20.97262233]
[1746636769075,7.78555273,146.59,146.58,20.97262233]
[1746636769303,7.78555273,146.59,146.52,103.47262233]
[1746636769475,7.78555273,146.59,146.58,20.97262233]
[1746636770399,0.963805,146.59,146.58,20.97262233]
[1746636772102,7.78555273,146.59,146.58,20.97262233]
[1746636772698,7.78555273,146.59,146.54,16.6]
[1746636772927,7.78555273,146.59,146.58,20.97262233]
[1746636774193,0.963805,146.59,146.58,20.97262233]
[1746636780498,7.78555273,146.59,146.58,20.97262233]
[1746636782196,7.78555273,146.59,146.54,16.6]
[1746636782397,7.78555273,146.59,146.56,20.97262233]
[1746636783536,24.83992205,146.59,146.56,20.97262233]
[1746636783707,45.81254438,146.59,146.54,20.97262233]
[1746636784022,45.81254438,146.59,146.55,20.97262233]
[1746636784196,24.83992205,146.59,146.56,20.97262233]
[1746636787419,20.97262233,146.58,146.51,1.6578]
[1746636787719,20.97262233,146.58,146.54,20.97262233]
[1746636788520,0.14216157,146.58,146.54,20.97262233]
[1746636788721,21.1147839,146.58,146.54,20.97262233]
[1746636789217,21.1147839,146.58,146.51,1.6578]
[1746636789427,6.82267858,146.57,146.54,20.97262233]
[1746636792417,6.82267858,146.57,146.51,1.6578]
[1746636792616,6.82267858,146.57,146.54,20.97262233]
[1746636794924,6.82267858,146.57,146.51,1.6578]
[1746636795123,6.82267858,146.57,146.54,20.97262233]
[1746636798406,6.82267858,146.57,146.51,1.6578]
[1746636798607,6.82267858,146.57,146.54,20.97262233]
[1746636799026,23.87868146,146.58,146.54,20.97262233]
[1746636799923,21.1147839,146.57,146.52,20.97262233]
[1746636800130,20.97262233,146.56,146.52,20.97262233]
[1746636801033,21.1147839,146.57,146.52,20.97262233]
[1746636801336,6.8231441,146.56,146.53,20.97262233]
[1746636803832,6.96484015,146.57,146.53,20.97262233]
[1746636804236,6.96484015,146.57,146.54,20.97262233]
[1746636805343,6.96484015,146.57,146.53,20.97262233]
[1746636808315,6.96484015,146.57,146.54,20.97262233]
[1746636816438,6.82267858,146.57,146.55,20.97262233]
[1746636817122,6.82267858,146.57,146.56,20.97262233]
[1746636817319,6.82237301,146.58,146.56,20.97262233]
[1746636817515,7.78578114,146.59,146.57,20.97262233]
[1746636817721,7.78578114,146.59,146.58,20.97262233]
[1746636818136,0.963805,146.59,146.58,20.97262233]
[1746636823845,7.78555273,146.59,146.58,20.97262233]
[1746636825357,0.963805,146.59,146.58,20.97262233]
[1746636827346,7.78555273,146.59,146.58,20.97262233]
[1746636835882,0.963805,146.59,146.58,20.97262233]
[1746636837977,0.963805,146.59,146.58,27.79483545]
[1746636838967,0.963805,146.59,146.58,20.97262233]
[1746636839359,0.963805,146.59,146.58,27.79483545]
[1746636840484,0.963805,146.59,146.58,20.97262233]
[1746636843796,0.963805,146.59,146.58,13.41035256]
[1746636844667,0.963805,146.59,146.58,20.23256568]
[1746636844858,0.963805,146.59,146.58,13.41035256]
[1746636845870,0.963805,146.59,146.58,20.95464994]
[1746636849386,0.963805,146.59,146.58,27.77686306]
[1746636850591,0.963805,146.59,146.58,20.95464994]
[1746636867806,0.963805,146.59,146.58,13.41078823]
[1746636872907,0.963805,146.59,146.52,1.6182]
[1746636872908,7.78559808,146.59,146.52,1.6182]
[1746636873111,7.78559808,146.59,146.51,6.82524521]
[1746636873411,22.81718631,146.59,146.54,13.41078823]
[1746636873600,39.87155563,146.59,146.54,13.41078823]
[1746636873802,13.5529498,146.58,146.5,23.36571529]
[1746636874008,13.41078823,146.57,146.52,13.41078823]
[1746636874398,13.41078823,146.57,146.53,13.41078823]
[1746636874600,13.41078823,146.56,146.48,1.5032]
[1746636874912,6.82360968,146.55,146.52,13.41078823]
[1746636876419,6.8231441,146.56,146.52,13.41078823]
[1746636877091,20.23393233,146.56,146.52,13.41078823]
[1746636877292,37.2904835,146.57,146.53,13.41078823]
[1746636880015,37.2904835,146.57,146.49,6.82635646]
[1746636880218,37.2904835,146.57,146.48,8.32992531]
[1746636880526,13.41078823,146.56,146.52,13.41078823]
[1746636881719,6.82360968,146.55,146.52,13.41078823]
[1746636883814,6.8231441,146.56,146.52,13.41078823]
[1746636884219,6.8231441,146.56,146.53,13.41078823]
[1746636884729,23.88100436,146.56,146.53,13.41078823]
[1746636884893,23.88100436,146.56,146.52,13.41078823]
[1746636886316,23.88100436,146.56,146.53,13.41078823]
[1746636890602,23.88100436,146.56,146.52,13.41078823]
[1746636891125,37.29179259,146.56,146.52,13.41078823]
[1746636891307,37.29179259,146.56,146.51,13.41078823]
[1746636893439,23.88100436,146.56,146.54,13.41078823]
[1746636896637,23.88100436,146.56,146.53,13.41078823]
[1746636898325,6.8231441,146.56,146.54,13.41078823]
[1746636898525,6.8231441,146.56,146.55,13.41078823]
[1746636898727,6.8231441,146.56,146.54,13.41078823]
[1746636902031,6.8231441,146.56,146.55,13.41078823]
[1746636902439,143.62287756,146.57,146.55,13.41078823]
[1746636902941,143.62287756,146.57,146.48,68.5692248]
[1746636902942,143.62287756,146.57,146.54,13.41078823]
[1746636903254,6.82287756,146.57,146.54,13.41078823]
[1746636903654,6.82287756,146.57,146.5,6.82571559]
[1746636903831,6.82287756,146.57,146.53,13.41078823]
[1746636904015,6.82287756,146.57,146.54,13.41078823]
[1746636905643,23.87957401,146.57,146.54,13.41078823]